[Event "Titled Tuesday Blitz July 4 Early 2023"]
[White "FuenfgegenWilly"]
[Black "Womacka, Mathias"]
[BlackFideId "4611390"]
[WhiteElo "2405"]
[BlackElo "2506"]
[Result "0-1"]
[Round "10"]
[TimeControl "180+2"]
[Date "2023.07.04"]
[WhiteClock "0:00:40"]
[BlackClock "0:01:19"]
[Board "109"]

1. d4 {[%clk 0:02:29]}  Nf6 {[%clk 0:02:58]} 2. c4 {[%clk 0:02:29]}  e6 {[%clk 0:02:58]} 3. Nc3 {[%clk 0:02:30]}  Bb4 {[%clk 0:02:58]} 4. e3 {[%clk 0:02:30]}  c5 {[%clk 0:02:58]} 5. Ne2 {[%clk 0:02:29]}  cxd4 {[%clk 0:02:58]} 6. exd4 {[%clk 0:02:27]}  O-O {[%clk 0:02:58]} 7. a3 {[%clk 0:02:27]}  Be7 {[%clk 0:02:57]} 8. Ng3 {[%clk 0:02:26]}  d5 {[%clk 0:02:55]} 9. cxd5 {[%clk 0:02:26]}  Nxd5 {[%clk 0:02:55]} 10. Bd3 {[%clk 0:02:27]}  Nc6 {[%clk 0:02:53]} 11. O-O {[%clk 0:02:24]}  Nxd4 {[%clk 0:02:49]} 12. Bxh7+ {[%clk 0:02:20]}  Kxh7 {[%clk 0:02:48]} 13. Qxd4 {[%clk 0:02:20]}  Bf6 {[%clk 0:02:42]} 14. Qe4+ {[%clk 0:02:16]}  Kg8 {[%clk 0:02:40]} 15. Nxd5 {[%clk 0:02:14]}  Qxd5 {[%clk 0:02:33]} 16. Qxd5 {[%clk 0:02:14]}  exd5 {[%clk 0:02:32]} 17. Rd1 {[%clk 0:02:13]}  Be6 {[%clk 0:02:30]} 18. Be3 {[%clk 0:02:00]}  Bxb2 {[%clk 0:02:26]} 19. Rab1 {[%clk 0:02:00]}  Bxa3 {[%clk 0:02:25]} 20. Rxb7 {[%clk 0:02:01]}  a5 {[%clk 0:02:22]} 21. Ne2 {[%clk 0:01:53]}  Rfb8 {[%clk 0:02:11]} 22. Rxb8+ {[%clk 0:01:46]}  Rxb8 {[%clk 0:02:12]} 23. Ra1 {[%clk 0:01:46]}  Bb4 {[%clk 0:01:58]} 24. Nd4 {[%clk 0:01:46]}  Bc3 {[%clk 0:01:43]} 25. Rc1 {[%clk 0:01:39]}  Bb2 {[%clk 0:01:39]} 26. Rb1 {[%clk 0:01:05]}  a4 {[%clk 0:01:36]} 27. Nc2 {[%clk 0:00:57]}  Bf5 {[%clk 0:01:30]} 28. Bd4 {[%clk 0:00:40]}  a3 {[%clk 0:01:19]} 0-1


[Site "https://www.chess.com"]

[Event "Titled Tuesday Blitz July 4 Early 2023"]
[White "Liu, Casper"]
[Black "Gaal, Zsoka"]
[WhiteFideId "1454153"]
[BlackFideId "777765"]
[WhiteElo "2505"]
[BlackElo "2392"]
[Result "1-0"]
[Round "10"]
[TimeControl "180+2"]
[Date "2023.07.04"]
[WhiteClock "0:00:55"]
[BlackClock "0:00:01"]
[Board "111"]

1. c3 {[%clk 0:03:00]}  g6 {[%clk 0:02:54]} 2. e4 {[%clk 0:02:59]}  Bg7 {[%clk 0:02:55]} 3. d4 {[%clk 0:03:00]}  d6 {[%clk 0:02:54]} 4. h4 {[%clk 0:03:00]}  c5 {[%clk 0:02:52]} 5. dxc5 {[%clk 0:03:00]}  dxc5 {[%clk 0:02:52]} 6. Qxd8+ {[%clk 0:03:01]}  Kxd8 {[%clk 0:02:53]} 7. Be3 {[%clk 0:03:01]}  b6 {[%clk 0:02:53]} 8. Nf3 {[%clk 0:03:02]}  Bb7 {[%clk 0:02:53]} 9. Ng5 {[%clk 0:03:01]}  Ke8 {[%clk 0:02:53]} 10. Bb5+ {[%clk 0:02:53]}  Kf8 {[%clk 0:02:52]} 11. Na3 {[%clk 0:02:49]}  h6 {[%clk 0:02:52]} 12. O-O-O {[%clk 0:02:49]}  Nc6 {[%clk 0:02:30]} 13. Rd7 {[%clk 0:02:48]}  Na5 {[%clk 0:02:27]} 14. Rhd1 {[%clk 0:02:46]}  Bf6 {[%clk 0:02:24]} 15. Bf4 {[%clk 0:02:13]}  hxg5 {[%clk 0:02:14]} 16. hxg5 {[%clk 0:02:14]}  Bxe4 {[%clk 0:02:11]} 17. f3 {[%clk 0:02:06]}  Bf5 {[%clk 0:02:08]} 18. Rc7 {[%clk 0:01:46]}  Kg7 {[%clk 0:01:29]} 19. gxf6+ {[%clk 0:01:40]}  exf6 {[%clk 0:01:27]} 20. b4 {[%clk 0:01:40]}  a6 {[%clk 0:00:41]} 21. Be2 {[%clk 0:01:27]}  cxb4 {[%clk 0:00:40]} 22. cxb4 {[%clk 0:01:28]}  g5 {[%clk 0:00:39]} 23. Be3 {[%clk 0:01:23]}  Rh2 {[%clk 0:00:23]} 24. bxa5 {[%clk 0:01:22]}  Rxg2 {[%clk 0:00:23]} 25. Bc4 {[%clk 0:01:23]}  b5 {[%clk 0:00:20]} 26. Bxf7 {[%clk 0:01:19]}  Rc8 {[%clk 0:00:20]} 27. Rxc8 {[%clk 0:01:18]}  Bxc8 {[%clk 0:00:21]} 28. Bxg8 {[%clk 0:01:18]}  Bf5 {[%clk 0:00:16]} 29. Bb3 {[%clk 0:01:17]}  Rg3 {[%clk 0:00:10]} 30. Rd6 {[%clk 0:01:17]}  Rxf3 {[%clk 0:00:10]} 31. Bd4 {[%clk 0:01:17]}  Bg6 {[%clk 0:00:04]} 32. Rxa6 {[%clk 0:01:16]}  Rf1+ {[%clk 0:00:03]} 33. Kb2 {[%clk 0:01:15]}  Rd1 {[%clk 0:00:02]} 34. Bxf6+ {[%clk 0:01:14]}  Kh6 {[%clk 0:00:02]} 35. Nxb5 {[%clk 0:01:11]}  Rd2+ {[%clk 0:00:02]} 36. Ka3 {[%clk 0:01:10]}  Rf2 {[%clk 0:00:02]} 37. Rb6 {[%clk 0:01:08]}  g4 {[%clk 0:00:02]} 38. a6 {[%clk 0:01:08]}  g3 {[%clk 0:00:02]} 39. Bd4 {[%clk 0:01:02]}  Rf3 {[%clk 0:00:01]} 40. a7 {[%clk 0:01:01]}  Rf8 {[%clk 0:00:01]} 41. Rb8 {[%clk 0:01:01]}  Be4 {[%clk 0:00:01]} 42. Rxf8 {[%clk 0:01:00]}  g2 {[%clk 0:00:02]} 43. Nd6 {[%clk 0:00:57]}  Bc6 {[%clk 0:00:02]} 44. Kb4 {[%clk 0:00:56]}  Kh5 {[%clk 0:00:01]} 45. Kc5 {[%clk 0:00:56]}  Kg4 {[%clk 0:00:02]} 46. Kxc6 {[%clk 0:00:56]}  Kg3 {[%clk 0:00:01]} 47. a4 {[%clk 0:00:55]} 1-0


[Site "https://www.chess.com"]

[Event "Titled Tuesday Blitz July 4 Early 2023"]
[White "Kirillov, Dmitry"]
[Black "Topalov, Aleksandar"]
[WhiteFideId "34180572"]
[BlackFideId "925659"]
[WhiteElo "2504"]
[BlackElo "2390"]
[Result "1-0"]
[Round "10"]
[TimeControl "180+2"]
[Date "2023.07.04"]
[WhiteClock "0:02:35"]
[BlackClock "0:01:41"]
[Board "112"]

1. d4 {[%clk 0:03:00]}  Nf6 {[%clk 0:02:58]} 2. Nf3 {[%clk 0:03:00]}  g6 {[%clk 0:02:57]} 3. c4 {[%clk 0:03:01]}  Bg7 {[%clk 0:02:57]} 4. g3 {[%clk 0:03:02]}  O-O {[%clk 0:02:57]} 5. Bg2 {[%clk 0:03:03]}  c5 {[%clk 0:02:58]} 6. O-O {[%clk 0:03:03]}  cxd4 {[%clk 0:02:57]} 7. Nxd4 {[%clk 0:03:04]}  Nc6 {[%clk 0:02:57]} 8. Nc3 {[%clk 0:03:04]}  Nxd4 {[%clk 0:02:57]} 9. Qxd4 {[%clk 0:03:04]}  d6 {[%clk 0:02:57]} 10. Qd3 {[%clk 0:03:05]}  Bf5 {[%clk 0:02:57]} 11. e4 {[%clk 0:03:06]}  Bd7 {[%clk 0:02:57]} 12. b3 {[%clk 0:03:06]}  Bc6 {[%clk 0:02:57]} 13. Be3 {[%clk 0:03:05]}  a5 {[%clk 0:02:56]} 14. Rad1 {[%clk 0:03:03]}  Nd7 {[%clk 0:02:56]} 15. f4 {[%clk 0:03:01]}  Nc5 {[%clk 0:02:54]} 16. Qc2 {[%clk 0:02:59]}  Qb6 {[%clk 0:02:52]} 17. Nd5 {[%clk 0:02:55]}  Bxd5 {[%clk 0:02:51]} 18. exd5 {[%clk 0:02:55]}  a4 {[%clk 0:02:35]} 19. bxa4 {[%clk 0:02:48]}  Qb4 {[%clk 0:02:29]} 20. Rb1 {[%clk 0:02:44]}  Qxa4 {[%clk 0:02:21]} 21. Qxa4 {[%clk 0:02:43]}  Rxa4 {[%clk 0:02:21]} 22. Bxc5 {[%clk 0:02:43]}  dxc5 {[%clk 0:02:20]} 23. Rxb7 {[%clk 0:02:43]}  Re8 {[%clk 0:02:12]} 24. d6 {[%clk 0:02:42]}  Rxa2 {[%clk 0:01:41]} 25. Bc6 {[%clk 0:02:35]} 1-0


[Site "https://www.chess.com"]

[Event "Titled Tuesday Blitz July 4 Early 2023"]
[White "Postlmayer, Jakob"]
[Black "Juknis, Paulius"]
[WhiteFideId "1643622"]
[BlackFideId "12802247"]
[WhiteElo "2496"]
[BlackElo "2346"]
[Result "1-0"]
[Round "10"]
[TimeControl "180+2"]
[Date "2023.07.04"]
[WhiteClock "0:00:19"]
[BlackClock "0:00:20"]
[Board "113"]

1. d4 {[%clk 0:02:59]}  Nf6 {[%clk 0:03:00]} 2. Nf3 {[%clk 0:03:00]}  g6 {[%clk 0:03:00]} 3. Nbd2 {[%clk 0:02:59]}  Bg7 {[%clk 0:02:58]} 4. e4 {[%clk 0:02:59]}  d6 {[%clk 0:02:58]} 5. Be2 {[%clk 0:02:59]}  O-O {[%clk 0:02:56]} 6. O-O {[%clk 0:02:59]}  Nc6 {[%clk 0:02:56]} 7. c3 {[%clk 0:02:59]}  e5 {[%clk 0:02:56]} 8. dxe5 {[%clk 0:02:57]}  dxe5 {[%clk 0:02:52]} 9. Qc2 {[%clk 0:02:55]}  a5 {[%clk 0:02:50]} 10. a4 {[%clk 0:02:54]}  b6 {[%clk 0:02:44]} 11. Rd1 {[%clk 0:02:53]}  Qe7 {[%clk 0:02:43]} 12. b3 {[%clk 0:02:52]}  Rd8 {[%clk 0:02:35]} 13. Ba3 {[%clk 0:02:52]}  Qe8 {[%clk 0:02:35]} 14. Bb5 {[%clk 0:02:48]}  Bd7 {[%clk 0:02:16]} 15. Nc4 {[%clk 0:02:43]}  Nh5 {[%clk 0:02:16]} 16. Ne3 {[%clk 0:02:16]}  Ne7 {[%clk 0:02:08]} 17. Bxd7 {[%clk 0:02:13]}  Rxd7 {[%clk 0:02:08]} 18. Rxd7 {[%clk 0:02:13]}  Qxd7 {[%clk 0:02:09]} 19. Rd1 {[%clk 0:02:13]}  Qe6 {[%clk 0:02:09]} 20. Bxe7 {[%clk 0:01:58]}  Qxe7 {[%clk 0:02:09]} 21. Nd5 {[%clk 0:01:58]}  Qc5 {[%clk 0:02:10]} 22. g3 {[%clk 0:01:50]}  c6 {[%clk 0:02:05]} 23. Ne3 {[%clk 0:01:44]}  Nf6 {[%clk 0:01:53]} 24. Qd3 {[%clk 0:01:38]}  Bh6 {[%clk 0:01:47]} 25. Nc4 {[%clk 0:01:34]}  Re8 {[%clk 0:01:40]} 26. Kg2 {[%clk 0:01:28]}  Ng4 {[%clk 0:01:23]} 27. Qe2 {[%clk 0:01:20]}  Nf6 {[%clk 0:01:15]} 28. Rd6 {[%clk 0:01:04]}  Bg7 {[%clk 0:01:07]} 29. Nfd2 {[%clk 0:00:55]}  b5 {[%clk 0:01:05]} 30. Qe3 {[%clk 0:00:54]}  Qxe3 {[%clk 0:00:42]} 31. Nxe3 {[%clk 0:00:55]}  Rc8 {[%clk 0:00:35]} 32. Kf3 {[%clk 0:00:40]}  Ne8 {[%clk 0:00:34]} 33. Rd7 {[%clk 0:00:37]}  Bh6 {[%clk 0:00:34]} 34. Ra7 {[%clk 0:00:32]}  Bxe3 {[%clk 0:00:29]} 35. Kxe3 {[%clk 0:00:33]}  bxa4 {[%clk 0:00:24]} 36. bxa4 {[%clk 0:00:34]}  Rb8 {[%clk 0:00:24]} 37. Rxa5 {[%clk 0:00:33]}  Rb2 {[%clk 0:00:24]} 38. Ra8 {[%clk 0:00:20]}  Kf8 {[%clk 0:00:22]} 39. Nc4 {[%clk 0:00:19]}  Re2+ {[%clk 0:00:20]} 1-0


[Site "https://www.chess.com"]

[Event "Titled Tuesday Blitz July 4 Early 2023"]
[White "Cardozo Munar, Carlos Eduardo"]
[Black "Mica, Marek"]
[WhiteFideId "4409477"]
[BlackFideId "382884"]
[WhiteElo "2337"]
[BlackElo "2484"]
[Result "0-1"]
[Round "10"]
[TimeControl "180+2"]
[Date "2023.07.04"]
[WhiteClock "0:00:00"]
[BlackClock "0:00:49"]
[Board "114"]

1. d4 {[%clk 0:02:58]}  d5 {[%clk 0:02:59]} 2. Nf3 {[%clk 0:02:58]}  e6 {[%clk 0:02:58]} 3. c3 {[%clk 0:02:58]}  Nf6 {[%clk 0:02:58]} 4. Bg5 {[%clk 0:02:58]}  c5 {[%clk 0:02:56]} 5. e3 {[%clk 0:02:58]}  Nc6 {[%clk 0:02:56]} 6. Nbd2 {[%clk 0:02:58]}  h6 {[%clk 0:02:52]} 7. Bh4 {[%clk 0:02:58]}  cxd4 {[%clk 0:02:44]} 8. exd4 {[%clk 0:02:58]}  Bd6 {[%clk 0:02:44]} 9. Bd3 {[%clk 0:02:57]}  g5 {[%clk 0:02:43]} 10. Bg3 {[%clk 0:02:57]}  Nh5 {[%clk 0:02:44]} 11. Qe2 {[%clk 0:02:47]}  Nf4 {[%clk 0:02:43]} 12. Bxf4 {[%clk 0:02:46]}  gxf4 {[%clk 0:02:43]} 13. Ne5 {[%clk 0:02:42]}  Bxe5 {[%clk 0:02:42]} 14. dxe5 {[%clk 0:02:41]}  Qg5 {[%clk 0:02:42]} 15. Nf3 {[%clk 0:02:38]}  Qxg2 {[%clk 0:02:42]} 16. O-O-O {[%clk 0:02:37]}  Bd7 {[%clk 0:02:40]} 17. h4 {[%clk 0:02:20]}  Qg7 {[%clk 0:02:39]} 18. h5 {[%clk 0:02:15]}  Qf8 {[%clk 0:02:39]} 19. Qd2 {[%clk 0:02:14]}  Qc5 {[%clk 0:02:35]} 20. Qxf4 {[%clk 0:02:13]}  Qxf2 {[%clk 0:02:31]} 21. Rdf1 {[%clk 0:02:08]}  Qc5 {[%clk 0:02:31]} 22. Qf6 {[%clk 0:02:03]}  Qf8 {[%clk 0:02:26]} 23. Nh4 {[%clk 0:01:55]}  Rg8 {[%clk 0:02:16]} 24. Ng6 {[%clk 0:01:53]}  Qg7 {[%clk 0:02:10]} 25. Qf4 {[%clk 0:01:18]}  O-O-O {[%clk 0:02:05]} 26. Qxf7 {[%clk 0:01:17]}  Nxe5 {[%clk 0:02:01]} 27. Nxe5 {[%clk 0:01:07]}  Qxe5 {[%clk 0:02:02]} 28. Re1 {[%clk 0:00:55]}  Qg5+ {[%clk 0:02:01]} 29. Kb1 {[%clk 0:00:53]}  Rdf8 {[%clk 0:02:00]} 30. Qh7 {[%clk 0:00:51]}  Rg7 {[%clk 0:02:00]} 31. Rhg1 {[%clk 0:00:43]}  Rxh7 {[%clk 0:01:10]} 32. Rxg5 {[%clk 0:00:42]}  hxg5 {[%clk 0:01:10]} 33. Bxh7 {[%clk 0:00:41]}  g4 {[%clk 0:01:10]} 34. Bg6 {[%clk 0:00:34]}  Kd8 {[%clk 0:01:02]} 35. h6 {[%clk 0:00:32]}  Ke7 {[%clk 0:01:02]} 36. h7 {[%clk 0:00:32]}  Kf6 {[%clk 0:01:02]} 37. Bd3 {[%clk 0:00:31]}  Rh8 {[%clk 0:01:00]} 38. Kc2 {[%clk 0:00:26]}  e5 {[%clk 0:01:00]} 39. Rh1 {[%clk 0:00:24]}  e4 {[%clk 0:00:59]} 40. Be2 {[%clk 0:00:24]}  Bf5 {[%clk 0:00:59]} 41. Kd2 {[%clk 0:00:24]}  Kg5 {[%clk 0:00:57]} 42. c4 {[%clk 0:00:18]}  d4 {[%clk 0:00:56]} 43. c5 {[%clk 0:00:09]}  Rxh7 {[%clk 0:00:56]} 44. Rf1 {[%clk 0:00:07]}  e3+ {[%clk 0:00:56]} 45. Kd1 {[%clk 0:00:06]}  Rh2 {[%clk 0:00:56]} 46. b4 {[%clk 0:00:03]}  Be6 {[%clk 0:00:54]} 47. b5 {[%clk 0:00:02]}  Rxe2 {[%clk 0:00:53]} 48. Kxe2 {[%clk 0:00:02]}  Bc4+ {[%clk 0:00:53]} 49. Ke1 {[%clk 0:00:02]}  Bxb5 {[%clk 0:00:52]} 50. Rf7 {[%clk 0:00:00]}  d3 {[%clk 0:00:49]} 0-1


[Site "https://www.chess.com"]

[Event "Titled Tuesday Blitz July 4 Early 2023"]
[White "Rodriguez Santiago, Jaime"]
[Black "Herzog2012"]
[WhiteFideId "3100898"]
[WhiteElo "2330"]
[BlackElo "2476"]
[Result "0-1"]
[Round "10"]
[TimeControl "180+2"]
[Date "2023.07.04"]
[WhiteClock "0:00:08"]
[BlackClock "0:00:03"]
[Board "115"]

1. c4 {[%clk 0:03:00]}  e5 {[%clk 0:02:59]} 2. Nc3 {[%clk 0:02:59]}  Nf6 {[%clk 0:02:59]} 3. g3 {[%clk 0:02:52]}  d5 {[%clk 0:02:59]} 4. cxd5 {[%clk 0:02:52]}  Nxd5 {[%clk 0:02:59]} 5. Bg2 {[%clk 0:02:52]}  Nb6 {[%clk 0:02:54]} 6. e3 {[%clk 0:02:49]}  Be7 {[%clk 0:02:38]} 7. Nge2 {[%clk 0:02:47]}  O-O {[%clk 0:02:38]} 8. O-O {[%clk 0:02:46]}  c6 {[%clk 0:02:37]} 9. f4 {[%clk 0:02:45]}  exf4 {[%clk 0:02:29]} 10. Nxf4 {[%clk 0:02:45]}  N8d7 {[%clk 0:02:29]} 11. b3 {[%clk 0:02:44]}  Bf6 {[%clk 0:02:18]} 12. Nh5 {[%clk 0:02:41]}  Bxc3 {[%clk 0:02:08]} 13. dxc3 {[%clk 0:02:38]}  Ne5 {[%clk 0:02:05]} 14. Qd4 {[%clk 0:02:23]}  Qxd4 {[%clk 0:02:00]} 15. exd4 {[%clk 0:02:21]}  Nd3 {[%clk 0:01:46]} 16. Ba3 {[%clk 0:02:13]}  Re8 {[%clk 0:01:32]} 17. Rad1 {[%clk 0:02:00]}  Bg4 {[%clk 0:01:23]} 18. Rxd3 {[%clk 0:01:40]}  Bxh5 {[%clk 0:01:21]} 19. Rd2 {[%clk 0:01:33]}  Nd5 {[%clk 0:01:03]} 20. Bxd5 {[%clk 0:01:23]}  cxd5 {[%clk 0:01:02]} 21. Rf5 {[%clk 0:01:23]}  Bg6 {[%clk 0:00:38]} 22. Rxd5 {[%clk 0:01:22]}  Re1+ {[%clk 0:00:39]} 23. Kf2 {[%clk 0:01:21]}  Rh1 {[%clk 0:00:38]} 24. h4 {[%clk 0:01:04]}  Rh2+ {[%clk 0:00:37]} 25. Ke3 {[%clk 0:00:56]}  Rh3 {[%clk 0:00:34]} 26. Bd6 {[%clk 0:00:52]}  f6 {[%clk 0:00:28]} 27. Kf3 {[%clk 0:00:37]}  Rh1 {[%clk 0:00:27]} 28. Rc5 {[%clk 0:00:34]}  Re8 {[%clk 0:00:23]} 29. Bf4 {[%clk 0:00:33]}  Be4+ {[%clk 0:00:20]} 30. Kf2 {[%clk 0:00:30]}  Rh2+ {[%clk 0:00:19]} 31. Ke1 {[%clk 0:00:30]}  Bd3+ {[%clk 0:00:18]} 32. Be5 {[%clk 0:00:29]}  Rh1+ {[%clk 0:00:14]} 33. Kf2 {[%clk 0:00:29]}  Be4 {[%clk 0:00:13]} 34. Re2 {[%clk 0:00:11]}  Rh2+ {[%clk 0:00:11]} 35. Ke3 {[%clk 0:00:11]}  Rxe2+ {[%clk 0:00:12]} 36. Kxe2 {[%clk 0:00:12]}  fxe5 {[%clk 0:00:13]} 37. dxe5 {[%clk 0:00:12]}  Bc6 {[%clk 0:00:11]} 38. Ke3 {[%clk 0:00:12]}  Kf7 {[%clk 0:00:11]} 39. Kd4 {[%clk 0:00:13]}  Rd8+ {[%clk 0:00:11]} 40. Ke3 {[%clk 0:00:12]}  Rd5 {[%clk 0:00:11]} 41. Rxd5 {[%clk 0:00:12]}  Bxd5 {[%clk 0:00:12]} 42. c4 {[%clk 0:00:12]}  Bc6 {[%clk 0:00:11]} 43. Kd4 {[%clk 0:00:13]}  Ke6 {[%clk 0:00:10]} 44. b4 {[%clk 0:00:13]}  a6 {[%clk 0:00:07]} 45. a3 {[%clk 0:00:13]}  h5 {[%clk 0:00:06]} 46. c5 {[%clk 0:00:12]}  g6 {[%clk 0:00:04]} 47. a4 {[%clk 0:00:08]}  Bxa4 {[%clk 0:00:03]} 0-1


[Site "https://www.chess.com"]

[Event "Titled Tuesday Blitz July 4 Early 2023"]
[White "UNSTOPPABLE_LEGEND"]
[Black "Osinovsky, Stepan"]
[BlackFideId "4157354"]
[WhiteElo "2471"]
[BlackElo "2311"]
[Result "0-1"]
[Round "10"]
[TimeControl "180+2"]
[Date "2023.07.04"]
[WhiteClock "0:00:00"]
[BlackClock "0:00:12"]
[Board "116"]

1. e4 {[%clk 0:03:00]}  e5 {[%clk 0:02:59]} 2. Nf3 {[%clk 0:02:59]}  Nc6 {[%clk 0:03:00]} 3. Bc4 {[%clk 0:02:59]}  Nf6 {[%clk 0:02:59]} 4. Ng5 {[%clk 0:02:59]}  d5 {[%clk 0:03:00]} 5. exd5 {[%clk 0:03:00]}  Na5 {[%clk 0:03:00]} 6. Bb5+ {[%clk 0:03:01]}  c6 {[%clk 0:03:00]} 7. dxc6 {[%clk 0:03:02]}  bxc6 {[%clk 0:03:01]} 8. Bd3 {[%clk 0:03:02]}  Nd5 {[%clk 0:02:41]} 9. Nf3 {[%clk 0:03:01]}  Bd6 {[%clk 0:02:38]} 10. O-O {[%clk 0:03:00]}  O-O {[%clk 0:02:29]} 11. Re1 {[%clk 0:02:57]}  Qc7 {[%clk 0:01:45]} 12. Nc3 {[%clk 0:02:50]}  f5 {[%clk 0:01:42]} 13. Bf1 {[%clk 0:01:17]}  e4 {[%clk 0:01:36]} 14. Nd4 {[%clk 0:01:16]}  Bxh2+ {[%clk 0:01:31]} 15. Kh1 {[%clk 0:01:16]}  Rf6 {[%clk 0:00:36]} 16. Qh5 {[%clk 0:00:49]}  Bd7 {[%clk 0:00:21]} 17. d3 {[%clk 0:00:34]}  Bf4 {[%clk 0:00:19]} 18. Bxf4 {[%clk 0:00:17]}  Qxf4 {[%clk 0:00:20]} 19. Nxd5 {[%clk 0:00:13]}  cxd5 {[%clk 0:00:18]} 20. g3 {[%clk 0:00:12]}  Qxf2 {[%clk 0:00:17]} 21. Qe2 {[%clk 0:00:11]}  Qxd4 {[%clk 0:00:16]} 22. Bh3 {[%clk 0:00:10]}  Rh6 {[%clk 0:00:15]} 23. Kg2 {[%clk 0:00:11]}  Nc6 {[%clk 0:00:14]} 24. Rf1 {[%clk 0:00:02]}  f4 {[%clk 0:00:14]} 25. Bxd7 {[%clk 0:00:01]}  f3+ {[%clk 0:00:12]} 26. Rxf3 {[%clk 0:00:02]}  exf3+ {[%clk 0:00:12]} 27. Qxf3 {[%clk 0:00:00]}  Ne5 {[%clk 0:00:12]} 0-1


[Site "https://www.chess.com"]

[Event "Titled Tuesday Blitz July 4 Early 2023"]
[White "Nunez V, Gustavo Eduardo"]
[Black "Kostiukov, Alexandr"]
[WhiteFideId "4403690"]
[BlackFideId "14108100"]
[WhiteElo "2465"]
[BlackElo "2297"]
[Result "1-0"]
[Round "10"]
[TimeControl "180+2"]
[Date "2023.07.04"]
[WhiteClock "0:00:19"]
[BlackClock "0:00:00"]
[Board "117"]

1. e4 {[%clk 0:03:00]}  c5 {[%clk 0:02:44]} 2. Nc3 {[%clk 0:03:01]}  g6 {[%clk 0:02:44]} 3. g3 {[%clk 0:03:02]}  Bg7 {[%clk 0:02:45]} 4. Bg2 {[%clk 0:03:03]}  Nc6 {[%clk 0:02:45]} 5. d3 {[%clk 0:03:03]}  d6 {[%clk 0:02:45]} 6. Be3 {[%clk 0:03:04]}  e5 {[%clk 0:02:46]} 7. Nh3 {[%clk 0:03:03]}  Nge7 {[%clk 0:02:46]} 8. O-O {[%clk 0:03:03]}  Nd4 {[%clk 0:02:44]} 9. f4 {[%clk 0:03:04]}  O-O {[%clk 0:02:42]} 10. Nf2 {[%clk 0:02:53]}  f5 {[%clk 0:02:40]} 11. exf5 {[%clk 0:02:42]}  Nexf5 {[%clk 0:02:33]} 12. Bd2 {[%clk 0:02:37]}  Rb8 {[%clk 0:02:21]} 13. a4 {[%clk 0:02:36]}  Be6 {[%clk 0:02:18]} 14. Nfe4 {[%clk 0:02:33]}  Kh8 {[%clk 0:02:10]} 15. Ng5 {[%clk 0:02:32]}  Bg8 {[%clk 0:02:10]} 16. Bd5 {[%clk 0:02:28]}  h6 {[%clk 0:02:04]} 17. Bxg8 {[%clk 0:02:27]}  Kxg8 {[%clk 0:01:47]} 18. Nge4 {[%clk 0:02:26]}  b6 {[%clk 0:01:42]} 19. Nd5 {[%clk 0:02:20]}  Kh7 {[%clk 0:01:32]} 20. c3 {[%clk 0:02:19]}  Nc6 {[%clk 0:01:24]} 21. Qg4 {[%clk 0:02:17]}  Nce7 {[%clk 0:01:19]} 22. Nxe7 {[%clk 0:02:14]}  Qxe7 {[%clk 0:01:19]} 23. fxe5 {[%clk 0:02:09]}  Bxe5 {[%clk 0:01:13]} 24. Rae1 {[%clk 0:02:06]}  Qd7 {[%clk 0:01:06]} 25. Qh3 {[%clk 0:01:53]}  h5 {[%clk 0:00:48]} 26. Ng5+ {[%clk 0:01:36]}  Kg8 {[%clk 0:00:42]} 27. Qg2 {[%clk 0:01:28]}  Qb7 {[%clk 0:00:33]} 28. Rf3 {[%clk 0:01:19]}  Qd5 {[%clk 0:00:26]} 29. Ref1 {[%clk 0:01:12]}  Rbe8 {[%clk 0:00:22]} 30. Qh3 {[%clk 0:01:07]}  Bg7 {[%clk 0:00:18]} 31. g4 {[%clk 0:01:04]}  Nh6 {[%clk 0:00:10]} 32. Rxf8+ {[%clk 0:00:57]}  Rxf8 {[%clk 0:00:11]} 33. Rxf8+ {[%clk 0:00:37]}  Bxf8 {[%clk 0:00:12]} 34. gxh5 {[%clk 0:00:36]}  gxh5 {[%clk 0:00:09]} 35. Qxh5 {[%clk 0:00:34]}  Qf5 {[%clk 0:00:09]} 36. Qe8 {[%clk 0:00:30]}  Qxd3 {[%clk 0:00:02]} 37. Qe6+ {[%clk 0:00:28]}  Kh8 {[%clk 0:00:02]} 38. Qf6+ {[%clk 0:00:23]}  Kg8 {[%clk 0:00:02]} 39. Qe6+ {[%clk 0:00:20]}  Kh8 {[%clk 0:00:00]} 40. Qe3 {[%clk 0:00:19]} 1-0


[Site "https://www.chess.com"]

[Event "Titled Tuesday Blitz July 4 Early 2023"]
[White "Bilan, Danila"]
[Black "Schut, Han"]
[WhiteFideId "24161918"]
[BlackFideId "1005561"]
[WhiteElo "2511"]
[BlackElo "2308"]
[Result "1-0"]
[Round "10"]
[TimeControl "180+2"]
[Date "2023.07.04"]
[WhiteClock "0:00:07"]
[BlackClock "0:00:12"]
[Board "118"]

1. d4 {[%clk 0:02:59]}  Nf6 {[%clk 0:02:59]} 2. Nf3 {[%clk 0:03:00]}  g6 {[%clk 0:02:59]} 3. Bg5 {[%clk 0:02:59]}  Bg7 {[%clk 0:02:59]} 4. c3 {[%clk 0:02:59]}  d5 {[%clk 0:03:00]} 5. Nbd2 {[%clk 0:03:00]}  O-O {[%clk 0:03:00]} 6. e3 {[%clk 0:03:00]}  b6 {[%clk 0:02:58]} 7. Bd3 {[%clk 0:03:00]}  Bb7 {[%clk 0:02:59]} 8. O-O {[%clk 0:03:00]}  Ne4 {[%clk 0:02:59]} 9. Bh4 {[%clk 0:03:00]}  Nd7 {[%clk 0:02:55]} 10. Qc2 {[%clk 0:02:54]}  f5 {[%clk 0:02:50]} 11. Ng5 {[%clk 0:02:28]}  Nxg5 {[%clk 0:02:45]} 12. Bxg5 {[%clk 0:02:28]}  Qe8 {[%clk 0:02:40]} 13. f4 {[%clk 0:02:15]}  Nf6 {[%clk 0:02:30]} 14. c4 {[%clk 0:02:13]}  Ng4 {[%clk 0:02:18]} 15. Rfe1 {[%clk 0:01:55]}  Nxe3 {[%clk 0:02:12]} 16. Rxe3 {[%clk 0:01:49]}  Bxd4 {[%clk 0:02:10]} 17. Nf1 {[%clk 0:01:43]}  e5 {[%clk 0:02:02]} 18. cxd5 {[%clk 0:01:22]}  Bxd5 {[%clk 0:01:21]} 19. Kh1 {[%clk 0:01:15]}  Bxe3 {[%clk 0:01:11]} 20. Nxe3 {[%clk 0:01:16]}  Bf7 {[%clk 0:01:07]} 21. Qxc7 {[%clk 0:00:52]}  exf4 {[%clk 0:01:04]} 22. Qxf4 {[%clk 0:00:49]}  Rd8 {[%clk 0:00:58]} 23. Bxd8 {[%clk 0:00:48]}  Qxd8 {[%clk 0:00:59]} 24. Bc4 {[%clk 0:00:46]}  Qd2 {[%clk 0:00:55]} 25. Rd1 {[%clk 0:00:29]}  Qxb2 {[%clk 0:00:54]} 26. h4 {[%clk 0:00:25]}  Bxc4 {[%clk 0:00:47]} 27. Qxc4+ {[%clk 0:00:25]}  Kg7 {[%clk 0:00:47]} 28. Rd7+ {[%clk 0:00:24]}  Kf6 {[%clk 0:00:38]} 29. Nd5+ {[%clk 0:00:17]}  Ke6 {[%clk 0:00:28]} 30. Qc6+ {[%clk 0:00:10]}  Ke5 {[%clk 0:00:26]} 31. Qc7+ {[%clk 0:00:10]}  Kd4 {[%clk 0:00:15]} 32. Qf4+ {[%clk 0:00:10]}  Kc5 {[%clk 0:00:13]} 33. Rc7+ {[%clk 0:00:07]}  Kb5 {[%clk 0:00:12]} 34. Qc4+ {[%clk 0:00:06]}  Ka5 {[%clk 0:00:12]} 35. Rxa7# {[%clk 0:00:07]} 1-0


[Site "https://www.chess.com"]